[Event "1st SOA-GM Festival 2024"]
[Site "Bhubaneswar"]
[Date "2024.02.01"]
[Round "1.18"]
[White "Daaevik Wadhawan"]
[Black "Tologon tegin, Semetei"]
[Result "0-1"]
[WhiteElo "1997"]
[BlackElo "2384"]
[PlyCount "70"]
[EventDate "2024.02.01"]
[EventType "swiss"]
[EventCountry "IND"]
[TimeControl "5400+30"]

1. c4 {[%emt 0:00:40]} b6 {[%emt 0:00:08]} 2. Nc3 {[%emt 0:00:06]} Bb7 {[%emt 0:00:02]} 3. e4 {[%emt 0:00:11]} e6 {[%emt 0:00:04]} 4. g3 {[%emt 0:00:09]} f5 {[%emt 0:08:27]} 5. Bg2 {[%emt 0:04:35]} Nf6 {[%emt 0:01:02]} 6. d3 {[%emt 0:00:13]} fxe4 {[%emt 0:11:58]} 7. a3 {[%emt 0:00:01]} a5 {[%emt 0:12:41]} 8. Bg5 {[%emt 0:16:23]} Be7 {[%emt 0:01:11]} 9. dxe4 {[%emt 0:13:12]} O-O {[%emt 0:04:37]} 10. Bxf6 {[%emt 0:05:01]} Bxf6 {[%emt 0:35:42]} 11. Nge2 {[%emt 0:55:29]} Na6 {[%emt 0:05:51]} 12. O-O {[%emt 0:00:00]} Nc5 {[%emt 0:00:25]} 13. Qc2 {[%emt 0:00:00]} a4 {[%emt 0:00:34]} 14. Rad1 {[%emt 0:00:00]} d6 {[%emt 0:01:38]} 15. Nd4 {[%emt 0:00:00]} Qe8 {[%emt 0:02:59]} 16. Rfe1 {[%emt 0:00:00]} Bxd4 {[%emt 0:02:04]} 17. Rxd4 {[%emt 0:00:00]} Qc6 {[%emt 0:00:56]} 18. Rdd1 {[%emt 0:00:00]} Nb3 {[%emt 0:09:11]} 19. Nb5 {[%emt 0:00:00]} e5 {[%emt 0:00:00]} 20. Re3 {[%emt 0:00:00]} Qc5 {[%emt 0:00:00]} 21. Qe2 {[%emt 0:00:00]} Rf6 {[%emt 0:00:00]} 22. Rf3 {[%emt 0:00:00]} Rxf3 {[%emt 0:00:00]} 23. Bxf3 {[%emt 0:00:00]} Rf8 {[%emt 0:00:00]} 24. Bg4 {[%emt 0:00:00]} Ba6 {[%emt 0:01:19]} 25. Bd7 {[%emt 0:01:53]} Bxb5 {[%emt 0:00:54]} 26. cxb5 {[%emt 0:02:28]} Nd4 {[%emt 0:00:14]} 27. Qd3 {[%emt 0:00:19]} Nf3+ {[%emt 0:01:05]} 28. Kg2 {[%emt 0:01:59]} Ne1+ {[%emt 0:00:10]} 29. Rxe1 {[%emt 0:00:03]} Qxf2+ {[%emt 0:00:03]} 30. Kh3 {[%emt 0:00:07]} Qxe1 {[%emt 0:00:03]} 31. Qc4+ {[%emt 0:00:18]} Kh8 {[%emt 0:00:04]} 32. Bf5 {[%emt 0:00:05]} g6 {[%emt 0:00:38]} 33. Qxc7 {[%emt 0:00:13]} gxf5 {[%emt 0:00:40]} 34. Qxd6 {[%emt 0:00:13]} Qf1+ {[%emt 0:00:03]} 35. Kh4 {[%emt 0:00:06]} fxe4 {[%emt 0:00:04]} 0-1

[Event "1st SOA-GM Festival 2024"]
[Site "Bhubaneswar"]
[Date "2024.02.01"]
[Round "1.19"]
[White "Ayush Sharma"]
[Black "Fredericia, Louise"]
[Result "1-0"]
[WhiteElo "2378"]
[BlackElo "1990"]
[PlyCount "49"]
[EventDate "2024.02.01"]
[EventType "swiss"]
[EventCountry "IND"]
[TimeControl "5400+30"]

1. e4 {[%emt 0:00:03]} c5 {[%emt 0:00:14]} 2. Nf3 {[%emt 0:00:05]} Nc6 {[%emt 0:00:09]} 3. Nc3 {[%emt 0:00:12]} g6 {[%emt 0:02:08]} 4. d4 {[%emt 0:00:07]} cxd4 {[%emt 0:00:13]} 5. Nxd4 {[%emt 0:00:02]} Bg7 {[%emt 0:00:14]} 6. Be3 {[%emt 0:00:06]} Nf6 {[%emt 0:01:11]} 7. Bc4 {[%emt 0:00:03]} O-O {[%emt 0:06:29]} 8. Bb3 {[%emt 0:00:20]} Qa5 {[%emt 0:03:39]} 9. O-O {[%emt 0:00:26]} d6 {[%emt 0:01:19]} 10. Nd5 {[%emt 0:01:42]} Re8 {[%emt 0:05:18]} 11. Re1 {[%emt 0:08:42]} Bd7 {[%emt 0:09:38]} 12. Bd2 {[%emt 0:03:20]} Qd8 {[%emt 0:02:01]} 13. Bc3 {[%emt 0:01:01]} Nh5 {[%emt 0:10:12]} 14. a4 {[%emt 0:06:45]} e5 {[%emt 0:11:56]} 15. Nb5 {[%emt 0:00:38]} Qg5 {[%emt 0:08:44]} 16. Nxd6 {[%emt 0:00:12]} Bh3 {[%emt 0:03:22]} 17. Qf3 {[%emt 0:00:13]} Be6 {[%emt 0:03:24]} 18. Nc7 {[%emt 0:01:33]} Re7 {[%emt 0:05:10]} 19. Nxa8 {[%emt 0:00:27]} Nd4 {[%emt 0:01:50]} 20. Bxd4 {[%emt 0:00:27]} exd4 {[%emt 0:00:05]} 21. Bxe6 {[%emt 0:00:35]} fxe6 {[%emt 0:00:09]} 22. e5 {[%emt 0:01:40]} Bxe5 {[%emt 0:01:12]} 23. h4 {[%emt 0:00:02]} Qf4 {[%emt 0:01:08]} 24. Qxf4 {[%emt 0:00:02]} Bxf4 {[%emt 0:00:09]} 25. Nb5 {[%emt 0:00:08]} 1-0

[Event "1st SOA-GM Festival 2024"]
[Site "Bhubaneswar"]
[Date "2024.02.01"]
[Round "1.20"]
[White "Pattnayak Nilsu"]
[Black "Gonzales, Jayson"]
[Result "1/2-1/2"]
[WhiteElo "1987"]
[BlackElo "2367"]
[PlyCount "68"]
[EventDate "2024.02.01"]
[EventType "swiss"]
[EventCountry "IND"]
[TimeControl "5400+30"]

1. e4 {[%emt 0:00:26]} g6 {[%emt 0:00:20]} 2. d4 {[%emt 0:00:07]} Bg7 {[%emt 0:00:02]} 3. Nf3 {[%emt 0:00:28]} d6 {[%emt 0:00:28]} 4. Nc3 {[%emt 0:00:55]} Nf6 5. Bd3 {[%emt 0:04:30]} O-O {[%emt 0:01:36]} 6. O-O {[%emt 0:00:04]} Nc6 {[%emt 0:03:35]} 7. h3 {[%emt 0:00:57]} e5 {[%emt 0:00:25]} 8. dxe5 {[%emt 0:02:28]} dxe5 {[%emt 0:00:54]} 9. Be3 {[%emt 0:12:10]} Qe7 {[%emt 0:10:48]} 10. Bg5 {[%emt 0:10:03]} Be6 {[%emt 0:01:18]} 11. Nd5 {[%emt 0:02:53]} Bxd5 {[%emt 0:00:39]} 12. exd5 {[%emt 0:00:05]} Nb4 {[%emt 0:00:13]} 13. Re1 {[%emt 0:04:54]} Qd6 {[%emt 0:07:13]} 14. Nxe5 {[%emt 0:04:39]} Nfxd5 {[%emt 0:03:46]} 15. Nc4 {[%emt 0:04:03]} Qc5 {[%emt 0:02:22]} 16. c3 {[%emt 0:07:56]} Nxd3 {[%emt 0:04:07]} 17. Qxd3 {[%emt 0:00:12]} Nb4 {[%emt 0:02:07]} 18. Qd2 {[%emt 0:10:57]} Nc6 {[%emt 0:59:37]} 19. Na3 {[%emt 0:02:25]} Rfe8 {[%emt 0:00:00]} 20. Rxe8+ {[%emt 0:02:28]} Rxe8 {[%emt 0:00:00]} 21. Be3 {[%emt 0:00:07]} Qf5 {[%emt 0:00:00]} 22. Rd1 {[%emt 0:00:57]} Ne5 {[%emt 0:00:00]} 23. Nc2 {[%emt 0:03:26]} Bf6 {[%emt 0:00:00]} 24. b3 {[%emt 0:07:38]} c5 {[%emt 0:00:00]} 25. Bxc5 {[%emt 0:04:33]} Nf3+ {[%emt 0:00:00]} 26. gxf3 {[%emt 0:00:05]} Qxc5 {[%emt 0:00:00]} 27. c4 {[%emt 0:01:27]} Qh5 {[%emt 0:00:00]} 28. Kg2 {[%emt 0:02:11]} Bg5 {[%emt 0:00:00]} 29. Ne3 {[%emt 0:03:23]} Bxe3 {[%emt 0:03:16]} 30. fxe3 {[%emt 0:00:05]} Qg5+ {[%emt 0:01:09]} 31. Kf2 {[%emt 0:00:27]} Qh4+ {[%emt 0:00:17]} 32. Kg2 {[%emt 0:00:19]} Qg5+ {[%emt 0:00:15]} 33. Kf2 {[%emt 0:00:07]} Qh4+ {[%emt 0:00:04]} 34. Kg2 {[%emt 0:00:31]} Qg5+ {[%emt 0:00:06]} 1/2-1/2

[Event "1st SOA-GM Festival 2024"]
[Site "Bhubaneswar"]
[Date "2024.02.01"]
[Round "2.1"]
[White "Roy Chowdhury, Saptarshi"]
[Black "Ghosh, Diptayan"]
[Result "1/2-1/2"]
[WhiteElo "2233"]
[BlackElo "2568"]
[PlyCount "66"]
[EventDate "2024.02.01"]
[EventType "swiss"]
[EventCountry "IND"]
[TimeControl "5400+30"]

1. e4 {[%emt 0:00:11]} c6 {[%emt 0:00:24]} 2. Nc3 {[%emt 0:00:15]} d5 {[%emt 0:00:04]} 3. Nf3 {[%emt 0:00:05]} dxe4 {[%emt 0:00:44]} 4. Nxe4 {[%emt 0:00:07]} Nf6 {[%emt 0:00:04]} 5. Qe2 {[%emt 0:02:15]} Nxe4 {[%emt 0:06:31]} 6. Qxe4 {[%emt 0:00:05]} Nd7 {[%emt 0:00:03]} 7. Bc4 {[%emt 0:01:44]} Nf6 {[%emt 0:00:37]} 8. Qe2 {[%emt 0:01:18]} Bf5 {[%emt 0:05:53]} 9. d4 {[%emt 0:10:34]} e6 {[%emt 0:00:48]} 10. h3 {[%emt 0:01:10]} Be7 {[%emt 0:04:15]} 11. O-O {[%emt 0:05:35]} Bg6 {[%emt 0:04:13]} 12. c3 {[%emt 0:02:00]} Nd7 {[%emt 0:07:23]} 13. Ne5 {[%emt 0:05:20]} Nxe5 {[%emt 0:02:27]} 14. Qxe5 {[%emt 0:00:05]} O-O {[%emt 0:00:43]} 15. Bf4 {[%emt 0:00:26]} Rc8 {[%emt 0:05:19]} 16. Rad1 {[%emt 0:03:53]} Re8 {[%emt 0:07:54]} 17. Rfe1 {[%emt 0:03:05]} Qb6 {[%emt 0:00:59]} 18. Qe2 {[%emt 0:03:24]} Rcd8 {[%emt 0:02:33]} 19. Rd2 {[%emt 0:02:54]} Qa5 {[%emt 0:04:10]} 20. b4 {[%emt 0:02:28]} Qb6 {[%emt 0:08:23]} 21. Qg4 {[%emt 0:01:48]} Ra8 {[%emt 0:05:18]} 22. Qg3 {[%emt 0:10:23]} Qd8 {[%emt 0:00:58]} 23. Bc7 {[%emt 0:01:42]} Bh4 {[%emt 0:01:36]} 24. Qh2 {[%emt 0:01:14]} Qd7 {[%emt 0:01:16]} 25. Rde2 {[%emt 0:00:24]} h6 {[%emt 0:02:48]} 26. Bg3 {[%emt 0:02:16]} Bd8 {[%emt 0:03:35]} 27. Bf4 {[%emt 0:01:16]} a5 {[%emt 0:02:38]} 28. Qg3 {[%emt 0:05:35]} Kh7 {[%emt 0:02:13]} 29. a3 {[%emt 0:01:03]} axb4 {[%emt 0:00:15]} 30. axb4 {[%emt 0:00:05]} Bf6 {[%emt 0:03:32]} 31. Be5 {[%emt 0:01:07]} Qd8 {[%emt 0:03:05]} 32. Bxf6 {[%emt 0:07:57]} Qxf6 {[%emt 0:00:34]} 33. Re5 {[%emt 0:00:17]} Kh8 {[%emt 0:15:45]} 1/2-1/2

[Event "1st SOA-GM Festival 2024"]
[Site "Bhubaneswar"]
[Date "2024.02.01"]
[Round "2.2"]
[White "Fawzy, Adham"]
[Black "Frayna, Janelle Mae"]
[Result "1-0"]
[WhiteElo "2522"]
[BlackElo "2197"]
[PlyCount "133"]
[EventDate "2024.02.01"]
[EventType "swiss"]
[EventCountry "IND"]
[TimeControl "5400+30"]

1. e4 {[%emt 0:00:04]} e5 {[%emt 0:00:20]} 2. Nf3 {[%emt 0:01:19]} Nf6 {[%emt 0:02:21]} 3. Nxe5 {[%emt 0:03:11]} d6 {[%emt 0:00:37]} 4. Nf3 {[%emt 0:00:40]} Nxe4 {[%emt 0:00:06]} 5. Nc3 {[%emt 0:00:06]} Nxc3 {[%emt 0:01:49]} 6. dxc3 {[%emt 0:01:14]} Be7 {[%emt 0:01:52]} 7. Bf4 {[%emt 0:01:09]} O-O {[%emt 0:01:05]} 8. Qd2 {[%emt 0:01:29]} Nd7 {[%emt 0:00:06]} 9. Be2 {[%emt 0:04:35]} Nc5 {[%emt 0:00:24]} 10. Rd1 {[%emt 0:03:28]} Re8 {[%emt 0:08:05]} 11. O-O {[%emt 0:00:37]} Bf6 {[%emt 0:08:23]} 12. Rfe1 {[%emt 0:02:14]} Bg4 {[%emt 0:02:34]} 13. h3 {[%emt 0:01:52]} Ne4 {[%emt 0:04:44]} 14. Qd5 {[%emt 0:08:07]} c6 {[%emt 0:08:04]} 15. Qb3 {[%emt 0:01:13]} Bc8 {[%emt 0:09:59]} 16. Bf1 {[%emt 0:11:27]} Qb6 {[%emt 0:05:40]} 17. Nd4 {[%emt 0:23:48]} Bd7 {[%emt 0:05:06]} 18. f3 {[%emt 0:03:13]} Nc5 {[%emt 0:00:09]} 19. Rxe8+ {[%emt 0:00:07]} Bxe8 {[%emt 0:00:49]} 20. Qxb6 {[%emt 0:11:18]} axb6 {[%emt 0:00:04]} 21. Bxd6 {[%emt 0:01:13]} Rxa2 {[%emt 0:02:49]} 22. Bc4 {[%emt 0:19:06]} Ra8 {[%emt 0:02:22]} 23. Nf5 {[%emt 0:00:00]} Na4 {[%emt 0:07:30]} 24. Ra1 {[%emt 0:00:00]} b5 {[%emt 0:01:25]} 25. Bb3 {[%emt 0:00:00]} Bd7 {[%emt 0:02:35]} 26. Ng3 {[%emt 0:00:00]} Be6 {[%emt 0:09:32]} 27. Ne4 {[%emt 0:00:00]} Bd8 {[%emt 0:00:32]} 28. Bxe6 {[%emt 0:00:00]} fxe6 {[%emt 0:00:03]} 29. Kf1 {[%emt 0:00:00]} Bf6 {[%emt 0:01:49]} 30. Ra2 {[%emt 0:00:00]} Rd8 {[%emt 0:02:39]} 31. Ke2 {[%emt 0:00:00]} Kf7 {[%emt 0:04:52]} 32. Bb4 {[%emt 0:00:00]} Kg6 {[%emt 0:02:39]} 33. b3 {[%emt 0:00:00]} Nb6 {[%emt 0:05:56]} 34. Ra7 {[%emt 0:00:00]} Rd7 {[%emt 0:00:00]} 35. Nc5 {[%emt 0:00:00]} Rf7 {[%emt 0:00:00]} 36. Rxb7 {[%emt 0:00:05]} Rxb7 {[%emt 0:00:00]} 37. Nxb7 {[%emt 0:00:05]} Nd5 {[%emt 0:00:00]} 38. Na5 {[%emt 0:00:19]} c5 {[%emt 0:00:26]} 39. Bxc5 {[%emt 0:00:06]} Bxc3 {[%emt 0:00:07]} 40. Nc6 {[%emt 0:00:35]} Nf4+ {[%emt 0:00:10]} 41. Kf2 {[%emt 0:01:01]} h5 {[%emt 0:00:17]} 42. Bd4 {[%emt 0:01:26]} Bxd4+ {[%emt 0:00:45]} 43. Nxd4 {[%emt 0:00:01]} b4 {[%emt 0:00:04]} 44. h4 {[%emt 0:03:04]} Kf6 {[%emt 0:00:28]} 45. Nc6 {[%emt 0:01:16]} Nd5 {[%emt 0:00:10]} 46. g3 {[%emt 0:00:30]} g5 {[%emt 0:00:28]} 47. hxg5+ {[%emt 0:00:28]} Kxg5 {[%emt 0:00:02]} 48. Ke2 {[%emt 0:00:09]} Kf5 {[%emt 0:01:25]} 49. Kd3 {[%emt 0:00:11]} e5 {[%emt 0:00:03]} 50. Kc4 {[%emt 0:01:09]} Ne3+ {[%emt 0:00:05]} 51. Kxb4 {[%emt 0:00:18]} Nxc2+ {[%emt 0:00:02]} 52. Kc5 {[%emt 0:00:12]} Ne1 {[%emt 0:00:33]} 53. b4 {[%emt 0:00:38]} Nxf3 {[%emt 0:00:04]} 54. b5 {[%emt 0:00:18]} Ng5 {[%emt 0:02:39]} 55. Kd5 {[%emt 0:01:10]} Nh7 {[%emt 0:01:31]} 56. Ne7+ {[%emt 0:01:08]} Kg4 {[%emt 0:00:50]} 57. Ng8 {[%emt 0:01:20]} e4 {[%emt 0:00:36]} 58. Kxe4 {[%emt 0:00:12]} Ng5+ {[%emt 0:00:01]} 59. Kd5 {[%emt 0:00:01]} Nf7 {[%emt 0:00:58]} 60. Nh6+ {[%emt 0:00:49]} Nxh6 {[%emt 0:00:08]} 61. b6 {[%emt 0:00:01]} Nf5 {[%emt 0:01:31]} 62. b7 {[%emt 0:00:01]} Nxg3 {[%emt 0:00:18]} 63. b8=Q h4 {[%emt 0:00:12]} 64. Qb2 {[%emt 0:01:05]} h3 {[%emt 0:00:17]} 65. Ke5 {[%emt 0:00:29]} Kf3 {[%emt 0:00:49]} 66. Qh2 {[%emt 0:00:01]} Kg4 {[%emt 0:00:07]} 67. Qf2 {[%emt 0:00:05]} 1-0

[Event "1st SOA-GM Festival 2024"]
[Site "Bhubaneswar"]
[Date "2024.02.01"]
[Round "2.3"]
[White "Nilssen, Ellen Fredericia"]
[Black "Das, Sayantan"]
[Result "1-0"]
[WhiteElo "2184"]
[BlackElo "2514"]
[PlyCount "145"]
[EventDate "2024.02.01"]
[EventType "swiss"]
[EventCountry "IND"]
[TimeControl "5400+30"]

1. d4 {[%emt 0:00:04]} d5 {[%emt 0:00:21]} 2. c4 {[%emt 0:00:08]} e6 {[%emt 0:00:27]} 3. Nc3 {[%emt 0:00:12]} Nf6 {[%emt 0:00:20]} 4. cxd5 {[%emt 0:01:44]} exd5 {[%emt 0:00:05]} 5. Bg5 {[%emt 0:00:07]} Bb4 {[%emt 0:00:14]} 6. e3 {[%emt 0:05:13]} h6 {[%emt 0:00:05]} 7. Bh4 {[%emt 0:00:31]} g5 {[%emt 0:00:10]} 8. Bg3 {[%emt 0:00:05]} Ne4 {[%emt 0:00:05]} 9. Nge2 {[%emt 0:01:09]} h5 {[%emt 0:01:20]} 10. h4 {[%emt 0:05:59]} Bg4 {[%emt 0:05:07]} 11. f3 {[%emt 0:06:10]} Nxg3 {[%emt 0:01:19]} 12. Nxg3 {[%emt 0:00:30]} Be6 {[%emt 0:02:24]} 13. Qa4+ {[%emt 0:06:16]} Nc6 {[%emt 0:00:06]} 14. Bb5 {[%emt 0:00:22]} Bd7 {[%emt 0:03:30]} 15. Nge2 {[%emt 0:07:08]} gxh4 {[%emt 0:05:27]} 16. O-O-O {[%emt 0:02:20]} Bd6 {[%emt 0:14:16]} 17. Nxd5 {[%emt 0:09:15]} a6 {[%emt 0:02:14]} 18. Bxc6 {[%emt 0:01:30]} Bxc6 {[%emt 0:00:45]} 19. Qb3 {[%emt 0:00:10]} Qg5 {[%emt 0:01:40]} 20. Ndf4 {[%emt 0:03:34]} O-O-O {[%emt 0:05:07]} 21. Kb1 {[%emt 0:04:24]} Rde8 {[%emt 0:04:49]} 22. Rc1 {[%emt 0:03:19]} Bb5 {[%emt 0:03:30]} 23. Nc3 {[%emt 0:13:17]} Rxe3 {[%emt 0:16:24]} 24. Nfd5 {[%emt 0:00:45]} Rd3 {[%emt 0:00:32]} 25. Ne4 {[%emt 0:03:29]} Qd8 {[%emt 0:16:01]} 26. Nxd6+ {[%emt 0:02:04]} Qxd6 {[%emt 0:04:17]} 27. Nxc7 {[%emt 0:02:56]} Kb8 {[%emt 0:03:54]} 28. Nxb5 {[%emt 0:02:00]} Qg6 {[%emt 0:00:05]} 29. Qc2 {[%emt 0:00:45]} axb5 {[%emt 0:00:05]} 30. Rxh4 {[%emt 0:01:32]} Re8 {[%emt 0:03:18]} 31. Rxh5 {[%emt 0:07:27]} Rxd4 {[%emt 0:02:30]} 32. Qxg6 {[%emt 0:00:37]} fxg6 {[%emt 0:00:01]} 33. Rxb5 {[%emt 0:00:08]} Re2 {[%emt 0:00:22]} 34. g4 {[%emt 0:00:28]} Rf2 {[%emt 0:01:43]} 35. Rb3 {[%emt 0:12:22]} Rf4 {[%emt 0:01:35]} 36. Re1 {[%emt 0:00:00]} R4xf3 {[%emt 0:01:46]} 37. Rxf3 {[%emt 0:00:00]} Rxf3 {[%emt 0:03:06]} 38. Re6 {[%emt 0:00:00]} Rf1+ {[%emt 0:00:00]} 39. Kc2 {[%emt 0:00:00]} Rf2+ {[%emt 0:00:00]} 40. Kc3 {[%emt 0:00:00]} Rf3+ {[%emt 0:00:00]} 41. Kd4 {[%emt 0:00:00]} Rf2 {[%emt 0:00:00]} 42. b4 {[%emt 0:00:00]} Rxa2 {[%emt 0:00:00]} 43. Rxg6 {[%emt 0:00:00]} Rg2 {[%emt 0:01:28]} 44. Kc5 {[%emt 0:00:00]} Ka7 {[%emt 0:00:28]} 45. Rg7 {[%emt 0:00:00]} Rc2+ {[%emt 0:00:51]} 46. Kb5 {[%emt 0:00:00]} Rg2 {[%emt 0:00:05]} 47. Rg8 {[%emt 0:00:00]} Rg1 {[%emt 0:00:05]} 48. g5 {[%emt 0:00:00]} Rg2 {[%emt 0:00:46]} 49. Kc5 {[%emt 0:01:34]} Rc2+ {[%emt 0:00:06]} 50. Kd5 {[%emt 0:00:16]} Rb2 {[%emt 0:00:16]} 51. Ke6 {[%emt 0:01:44]} Rxb4 {[%emt 0:00:06]} 52. Rd8 {[%emt 0:01:23]} Rg4 {[%emt 0:00:46]} 53. Kf5 {[%emt 0:00:05]} Rg1 {[%emt 0:00:04]} 54. g6 {[%emt 0:00:11]} Ka6 {[%emt 0:01:37]} 55. Rd4 {[%emt 0:00:19]} b5 {[%emt 0:01:04]} 56. Rg4 {[%emt 0:00:38]} Rf1+ {[%emt 0:00:05]} 57. Ke6 {[%emt 0:00:15]} Re1+ {[%emt 0:00:47]} 58. Kf7 {[%emt 0:00:30]} Rf1+ {[%emt 0:00:04]} 59. Kg8 {[%emt 0:00:18]} Ka5 {[%emt 0:00:32]} 60. g7 {[%emt 0:00:16]} Rc1 {[%emt 0:00:48]} 61. Kf7 {[%emt 0:00:47]} Rc8 {[%emt 0:00:23]} 62. g8=Q {[%emt 0:01:14]} Rxg8 {[%emt 0:00:04]} 63. Rxg8 {[%emt 0:00:54]} Kb4 {[%emt 0:00:33]} 64. Ke6 {[%emt 0:00:19]} Kc4 {[%emt 0:00:38]} 65. Rc8+ {[%emt 0:01:03]} Kd4 {[%emt 0:00:20]} 66. Rb8 {[%emt 0:00:26]} Kc4 {[%emt 0:00:08]} 67. Ke5 {[%emt 0:00:30]} b4 {[%emt 0:00:05]} 68. Ke4 {[%emt 0:00:24]} Kc3 {[%emt 0:00:04]} 69. Ke3 {[%emt 0:00:55]} b3 {[%emt 0:00:59]} 70. Rc8+ {[%emt 0:00:07]} Kb2 {[%emt 0:00:01]} 71. Kd2 {[%emt 0:00:29]} Ka1 {[%emt 0:02:33]} 72. Rb8 {[%emt 0:00:45]} Kb2 {[%emt 0:00:29]} 73. Rb7 {[%emt 0:00:08]} 1-0

[Event "1st SOA-GM Festival 2024"]
[Site "Bhubaneswar"]
[Date "2024.02.01"]
[Round "2.4"]
[White "Savchenko, Boris"]
[Black "Aakash Sharadchandra, Dalvi"]
[Result "0-1"]
[WhiteElo "2489"]
[BlackElo "2180"]
[PlyCount "118"]
[EventDate "2024.02.01"]
[EventType "swiss"]
[EventCountry "IND"]
[TimeControl "5400+30"]

1. d4 {[%emt 0:00:03]} d5 {[%emt 0:00:12]} 2. Bf4 {[%emt 0:00:12]} Nf6 {[%emt 0:01:34]} 3. e3 {[%emt 0:00:07]} c5 {[%emt 0:00:25]} 4. c3 {[%emt 0:00:19]} Nc6 {[%emt 0:00:32]} 5. Nd2 {[%emt 0:00:07]} Bf5 {[%emt 0:00:17]} 6. Qb3 {[%emt 0:01:38]} Qd7 {[%emt 0:00:20]} 7. Ngf3 {[%emt 0:06:38]} c4 {[%emt 0:00:22]} 8. Qa4 {[%emt 0:00:23]} a6 {[%emt 0:02:55]} 9. Nh4 {[%emt 0:01:52]} e6 {[%emt 0:03:17]} 10. Nxf5 {[%emt 0:01:34]} exf5 {[%emt 0:00:05]} 11. g3 {[%emt 0:08:07]} Bd6 {[%emt 0:03:13]} 12. Bxd6 {[%emt 0:02:31]} Qxd6 {[%emt 0:00:04]} 13. Qc2 {[%emt 0:05:18]} g6 {[%emt 0:03:07]} 14. Bg2 {[%emt 0:02:14]} O-O {[%emt 0:00:16]} 15. O-O {[%emt 0:01:52]} b5 {[%emt 0:02:09]} 16. f3 {[%emt 0:00:52]} Rfe8 {[%emt 0:04:08]} 17. Rae1 {[%emt 0:03:45]} Rad8 {[%emt 0:06:03]} 18. Re2 {[%emt 0:01:45]} Qc7 {[%emt 0:08:03]} 19. Rfe1 {[%emt 0:17:58]} Re7 {[%emt 0:05:31]} 20. b3 {[%emt 0:18:00]} Rde8 {[%emt 0:12:53]} 21. bxc4 {[%emt 0:00:48]} dxc4 {[%emt 0:02:38]} 22. Qb2 {[%emt 0:05:42]} Nxd4 {[%emt 0:09:41]} 23. cxd4 {[%emt 0:00:11]} c3 {[%emt 0:00:05]} 24. Qb3 {[%emt 0:03:08]} cxd2 {[%emt 0:00:14]} 25. Rxd2 {[%emt 0:00:51]} Rxe3 {[%emt 0:07:02]} 26. Rxe3 {[%emt 0:00:06]} Qc1+ {[%emt 0:00:06]} 27. Bf1 {[%emt 0:00:17]} Qxd2 {[%emt 0:00:08]} 28. Rxe8+ {[%emt 0:00:24]} Nxe8 {[%emt 0:00:03]} 29. Qd5 {[%emt 0:00:11]} Kg7 {[%emt 0:05:43]} 30. Qc6 {[%emt 0:06:33]} Qxd4+ {[%emt 0:00:51]} 31. Kg2 {[%emt 0:00:08]} Qd2+ {[%emt 0:01:27]} 32. Kg1 {[%emt 0:00:06]} Qe3+ {[%emt 0:00:39]} 33. Kg2 {[%emt 0:00:07]} Qe6 {[%emt 0:00:19]} 34. Qc3+ {[%emt 0:00:25]} Nf6 {[%emt 0:00:59]} 35. Qa1 {[%emt 0:00:15]} Qc6 {[%emt 0:03:12]} 36. Bd3 {[%emt 0:00:11]} Kg8 {[%emt 0:00:40]} 37. Qd4 {[%emt 0:00:41]} Nd7 {[%emt 0:01:05]} 38. Kf2 {[%emt 0:02:24]} h5 {[%emt 0:00:48]} 39. Ke2 {[%emt 0:01:13]} Qe6+ {[%emt 0:02:33]} 40. Kf1 {[%emt 0:00:15]} Ne5 {[%emt 0:01:29]} 41. Be2 {[%emt 0:00:17]} Nc6 {[%emt 0:00:23]} 42. Qc5 {[%emt 0:00:45]} Ne7 {[%emt 0:01:22]} 43. Ke1 {[%emt 0:00:51]} Nd5 {[%emt 0:01:09]} 44. Kd2 {[%emt 0:01:00]} f4 {[%emt 0:00:26]} 45. a3 {[%emt 0:01:34]} fxg3 {[%emt 0:02:03]} 46. hxg3 {[%emt 0:00:06]} Ne7 {[%emt 0:00:14]} 47. Bd3 {[%emt 0:00:19]} Nf5 {[%emt 0:13:15]} 48. g4 {[%emt 0:00:43]} hxg4 {[%emt 0:00:00]} 49. fxg4 {[%emt 0:00:05]} Nh6 {[%emt 0:00:00]} 50. g5 {[%emt 0:00:15]} Ng4 {[%emt 0:00:00]} 51. Kc3 {[%emt 0:00:28]} Ne5 {[%emt 0:00:00]} 52. Be4 {[%emt 0:06:27]} Qc4+ {[%emt 0:00:00]} 53. Qxc4 {[%emt 0:00:09]} Nxc4 {[%emt 0:00:00]} 54. a4 {[%emt 0:00:48]} Nd6 {[%emt 0:00:00]} 55. Bd3 {[%emt 0:00:06]} bxa4 {[%emt 0:00:00]} 56. Kb4 {[%emt 0:00:04]} Kf8 {[%emt 0:00:00]} 57. Kxa4 {[%emt 0:00:06]} Ke7 {[%emt 0:00:00]} 58. Kb4 {[%emt 0:00:09]} Ke6 {[%emt 0:00:00]} 59. Kc5 {[%emt 0:00:12]} Ke5 {[%emt 0:00:00]} 0-1

[Event "1st SOA-GM Festival 2024"]
[Site "Bhubaneswar"]
[Date "2024.02.01"]
[Round "2.5"]
[White "Nithin Babu"]
[Black "Fedorov, Alexei"]
[Result "1-0"]
[WhiteElo "2177"]
[BlackElo "2457"]
[PlyCount "69"]
[EventDate "2024.02.01"]
[EventType "swiss"]
[EventCountry "IND"]
[TimeControl "5400+30"]

1. d4 {[%emt 0:00:07]} Nf6 {[%emt 0:00:17]} 2. c4 {[%emt 0:00:06]} g6 {[%emt 0:00:11]} 3. Nc3 {[%emt 0:00:05]} Bg7 {[%emt 0:00:06]} 4. e4 {[%emt 0:00:06]} d6 {[%emt 0:00:07]} 5. Be2 {[%emt 0:00:04]} O-O {[%emt 0:00:31]} 6. Be3 {[%emt 0:00:37]} c6 {[%emt 0:01:23]} 7. Nf3 {[%emt 0:00:10]} e5 {[%emt 0:00:38]} 8. O-O {[%emt 0:01:22]} exd4 {[%emt 0:01:28]} 9. Nxd4 {[%emt 0:00:07]} Re8 {[%emt 0:00:04]} 10. Qc2 {[%emt 0:00:55]} Qe7 {[%emt 0:05:13]} 11. f3 {[%emt 0:02:43]} Nh5 {[%emt 0:03:11]} 12. Rfd1 {[%emt 0:05:50]} f5 {[%emt 0:06:40]} 13. Bf2 {[%emt 0:03:37]} f4 {[%emt 0:01:45]} 14. b4 {[%emt 0:03:05]} Nd7 {[%emt 0:06:07]} 15. Nb3 {[%emt 0:07:46]} Ne5 {[%emt 0:01:45]} 16. Rd2 {[%emt 0:02:21]} Qg5 {[%emt 0:19:43]} 17. Kf1 {[%emt 0:01:42]} Be6 {[%emt 0:00:25]} 18. Rxd6 {[%emt 0:05:56]} Bxc4 {[%emt 0:01:09]} 19. Rad1 {[%emt 0:02:12]} b6 {[%emt 0:05:39]} 20. Bxc4+ {[%emt 0:11:22]} Nxc4 {[%emt 0:00:10]} 21. Rxc6 {[%emt 0:01:27]} Rac8 {[%emt 0:12:23]} 22. Rd5 {[%emt 0:12:17]} Qe7 {[%emt 0:11:16]} 23. b5 {[%emt 0:06:32]} Ne3+ {[%emt 0:01:15]} 24. Bxe3 {[%emt 0:00:09]} fxe3 {[%emt 0:00:37]} 25. Nd1 {[%emt 0:12:58]} e2+ {[%emt 0:02:31]} 26. Qxe2 {[%emt 0:00:52]} Nf4 {[%emt 0:00:25]} 27. Qc4 {[%emt 0:00:33]} Rxc6 {[%emt 0:00:27]} 28. bxc6 {[%emt 0:00:43]} Nxd5 {[%emt 0:00:19]} 29. Ne3 {[%emt 0:00:58]} Qb4 {[%emt 0:05:05]} 30. exd5 {[%emt 0:05:22]} Qd6 {[%emt 0:00:34]} 31. Nd2 {[%emt 0:00:37]} b5 {[%emt 0:04:37]} 32. Qb3 {[%emt 0:01:25]} Kh8 {[%emt 0:06:20]} 33. Ne4 {[%emt 0:00:39]} Qf4 {[%emt 0:00:59]} 34. d6 {[%emt 0:04:04]} Rxe4 {[%emt 0:00:06]} 35. c7 {[%emt 0:00:48]} 1-0